bitfinex-derivatives/quotes_ETHF0:USTF0_20250709
["timestamp","ask_amount","ask_price","bid_price","bid_amount"]
[1752076537230,1.49678,2655.1,2655.0,1.6]
[1752076538630,1.49678,2655.1,2655.0,2.35319]
[1752076540128,1.49678,2655.1,2655.0,1.6]
[1752076540531,1.49678,2655.1,2655.0,0.6217]
[1752076540725,0.75325,2654.8,2654.7,0.9947]
[1752076540929,4.06051874,2654.8,2654.7,0.6341]
[1752076541334,4.17571874,2654.8,2654.7,0.6341]
[1752076541531,4.17571874,2654.8,2654.7,1.38738]
[1752076541730,4.17571874,2654.8,2654.7,2.38208]
[1752076542827,70.49895,2655.2,2655.1,0.75316]
[1752076543032,3.96095,2655.2,2655.1,2.38196]
[1752076543634,3.96095,2655.2,2655.1,1.6288]
[1752076543832,4.07615,2655.2,2655.1,1.6288]
[1752076544031,3.96095,2655.2,2655.1,1.6288]
[1752076544228,4.07615,2655.2,2655.1,2.38196]
[1752076544433,0.86835,2655.2,2655.1,2.38196]
[1752076544835,0.75315,2655.2,2655.1,2.38196]
[1752076545239,0.75315,2655.2,2655.1,1.6288]
[1752076545631,0.86835,2655.2,2655.1,0.6341]
[1752076545834,0.75315,2655.2,2655.1,0.6341]
[1752076546036,0.86835,2655.2,2655.1,0.6341]
[1752076546639,0.86835,2655.2,2655.1,1.38726]
[1752076546938,0.86835,2655.2,2655.1,2.38196]
[1752076547341,0.86835,2655.2,2655.1,1.6288]
[1752076548243,0.86835,2655.2,2655.1,2.38196]
[1752076548542,0.86835,2655.2,2655.1,1.6288]
[1752076548938,2.6168492,2655.2,2655.1,1.6288]
[1752076549246,2.6168492,2655.2,2655.1,0.6341]
[1752076549544,0.75322,2654.9,2654.8,0.9947]
[1752076549739,0.86842,2654.9,2654.8,0.6341]
[1752076550141,1.50072,2654.9,2654.8,0.6341]
[1752076550645,1.50072,2654.9,2654.8,1.38735]
[1752076551443,1.50072,2654.9,2654.8,0.6341]
[1752076552244,1.50072,2654.9,2654.8,1.38735]
[1752076552643,1.50072,2654.9,2654.8,2.38205]
[1752076553148,1.50072,2654.9,2654.8,1.6288]
[1752076553745,1.50072,2654.9,2654.8,0.6341]
[1752076557849,0.75328,2654.7,2654.6,6.23375967]
[1752076558153,3.1340392,2654.9,2654.8,0.75325]
[1752076558451,2.5016792,2655.1,2655.0,0.75316]
[1752076558653,2.5016792,2655.1,2655.0,1.38726]
[1752076558848,2.5016792,2655.1,2655.0,2.38196]
[1752076560152,2.5016792,2655.1,2655.0,2.38199]
[1752076560453,2.5016792,2655.1,2655.0,1.6288]
[1752076561351,3.1334792,2655.1,2655.0,1.6288]
[1752076561552,3.1334792,2655.1,2655.0,2.38199]
[1752076561955,3.1334792,2655.1,2655.0,1.6288]
[1752076562155,3.1334792,2655.1,2655.0,2.38199]
[1752076562454,3.1334792,2655.1,2655.0,1.6288]
[1752076562954,3.1334792,2655.1,2655.0,2.38199]
[1752076563360,3.1334792,2655.1,2655.0,1.6288]
[1752076564259,3.1334792,2655.1,2655.0,2.38199]
[1752076564556,3.1334792,2655.1,2655.0,1.6288]
[1752076564759,3.1334792,2655.1,2655.0,2.38199]
[1752076565853,3.1334792,2655.1,2655.0,1.6288]
[1752076566053,3.1334792,2655.1,2655.0,2.38199]
[1752076566549,3.2486792,2655.1,2655.0,0.75319]
[1752076566755,0.75324,2654.9,2654.8,0.7532]
[1752076567057,2.5017192,2654.9,2654.8,1.3873]
[1752076567357,2.5017192,2654.9,2654.8,3.4049]
[1752076569554,1.7484992,2654.9,2654.8,3.4049]
[1752076569756,2.5017192,2654.9,2654.8,3.4049]
[1752076570261,2.5017192,2654.9,2654.8,2.7708]
[1752076570461,2.5017192,2654.9,2654.8,4.4265]
[1752076572369,2.5017192,2654.9,2654.6,6.26203967]
[1752076572370,1.8636992,2654.9,2654.6,6.26203967]
[1752076572570,2.5017792,2654.7,2654.6,6.26203967]
[1752076572969,2.6169792,2654.7,2654.6,6.89473967]
[1752076573169,2.5017792,2654.7,2654.6,6.89473967]
[1752076573371,2.6169792,2654.7,2654.6,6.89473967]
[1752076575980,2.6169792,2654.7,2654.6,2.40897]
[1752076578281,0.7532,2655.0,2654.9,0.75319]
[1752076578468,1.38496,2655.1,2655.0,0.75319]
[1752076578672,0.75316,2655.1,2655.0,2.40889]
[1752076580179,3.1572492,2655.2,2655.1,0.75316]
[1752076580380,3.1572492,2655.2,2655.1,1.38586]
[1752076580574,3.1572492,2655.2,2655.1,2.40886]
[1752076580875,3.2763492,2655.2,2655.1,2.40886]
[1752076581075,3.1572492,2655.2,2655.1,2.40886]
[1752076581278,3.2763492,2655.2,2655.1,2.40886]
[1752076583078,0.75315,2655.2,2655.1,2.40886]
[1752076584878,0.75315,2655.2,2655.1,1.6557]
[1752076585173,0.87225,2655.2,2655.1,1.6557]
[1752076585578,0.87225,2655.2,2655.1,2.40886]
[1752076586279,0.87225,2655.2,2655.1,1.6557]
[1752076586479,0.87225,2655.2,2655.1,2.40886]
[1752076590582,0.1191,2655.2,2655.1,2.40886]
[1752076590783,42.18568,2655.5,2655.4,0.75308]
[1752076590983,42.18568,2655.5,2655.4,2.40878]
[1752076591585,42.18568,2655.5,2655.4,1.6557]
[1752076591787,42.18568,2655.5,2655.4,0.6327]
[1752076591988,0.75319,2655.0,2654.9,4.2308]
[1752076592287,2.5016892,2655.0,2654.9,4.8635]
[1752076592681,2.5016892,2655.0,2654.9,5.61669]
[1752076594186,2.5016892,2655.0,2654.9,10.10245967]
[1752076594385,1.7484992,2655.0,2654.9,10.10245967]
[1752076594983,1.7484992,2655.0,2654.9,5.61669]
[1752076595183,2.5016892,2655.0,2654.9,5.61669]
[1752076598490,2.6207892,2655.0,2654.9,5.61669]
[1752076598690,2.5016892,2655.0,2654.9,5.61669]
[1752076598890,2.6207892,2655.0,2654.9,5.61669]
[1752076600489,1.8675992,2655.0,2654.9,5.61669]
[1752076600791,2.6207892,2655.0,2654.9,5.61669]
[1752076606593,2.6207892,2655.0,2654.9,2.40889]
[1752076607392,2.6207892,2655.0,2654.9,1.38589]
[1752076607789,2.6207892,2655.0,2654.9,0.6327]
[1752076607990,3.8716892,2655.0,2654.9,0.6327]
[1752076608690,0.75325,2654.8,2654.7,6.18412967]
[1752076608891,0.75325,2654.8,2654.7,6.83482967]
[1752076609092,0.75325,2654.8,2654.7,5.88972967]
[1752076609291,0.87205,2654.8,2654.7,6.83482967]
[1752076610796,2.6205492,2654.8,2654.7,2.34906]
[1752076611598,2.6205492,2654.8,2654.7,0.6507]
[1752076611798,2.6205492,2654.8,2654.7,1.40398]
[1752076611997,2.6205492,2654.8,2654.7,0.6507]
[1752076614394,2.6205492,2654.8,2654.7,1.5958]
[1752076614698,2.6205492,2654.8,2654.7,0.6507]
[1752076615496,2.6205492,2654.8,2654.7,1.40398]
[1752076615695,2.6205492,2654.8,2654.7,0.6507]
[1752076616198,2.6205492,2654.8,2654.7,1.40398]
[1752076616401,2.6205492,2654.8,2654.7,1.5958]
[1752076617003,2.6205492,2654.8,2654.7,2.34908]
[1752076617395,2.5017492,2654.8,2654.7,2.34908]
[1752076617699,0.75325,2654.8,2654.7,2.34908]
[1752076618096,0.75324,2654.9,2654.8,0.75322]
[1752076618300,0.75321,2655.0,2654.9,0.75317]
[1752076618494,0.75321,2655.0,2654.9,2.65627]
[1752076618696,0.75321,2655.0,2654.9,3.60137]
[1752076620500,0.75321,2655.0,2654.9,2.8482]
[1752076620996,2.5017092,2655.0,2654.9,1.5958]
[1752076621700,2.6205092,2655.0,2654.9,1.5958]
[1752076626301,2.6205092,2655.0,2654.9,2.34902]
[1752076626504,2.6205092,2655.0,2654.9,1.5958]
[1752076627906,2.6205092,2655.0,2654.9,2.34902]
[1752076628307,2.5017092,2655.0,2654.9,2.34902]
[1752076628509,2.5017092,2655.0,2654.9,1.5958]
[1752076628707,2.5017092,2655.0,2654.9,2.34902]
[1752076629306,2.6205092,2655.0,2654.9,2.34902]
[1752076629507,2.6206092,2655.0,2654.9,2.34902]
[1752076629804,2.5017092,2655.0,2654.9,2.34902]
[1752076631905,0.75321,2655.0,2654.9,2.34902]
[1752076632105,0.75321,2655.0,2654.9,3.68432]
[1752076633615,3.6313492,2655.2,2654.9,3.68432]
[1752076633616,0.75318,2655.1,2655.0,0.75316]
[1752076633805,0.75318,2655.1,2655.0,3.70046]
[1752076635902,0.75316,2655.2,2655.1,0.75313]
[1752076636114,0.75316,2655.2,2655.1,1.77693]
[1752076636411,0.75316,2655.2,2655.1,2.45553]
[1752076637011,0.87206,2655.2,2655.1,2.45553]
[1752076638711,3.8736,2655.4,2655.2,0.75311]
[1752076638911,3.8736,2655.4,2655.3,2.45551]
[1752076638912,3.96088,2655.4,2655.3,2.45551]
[1752076639311,3.96088,2655.4,2655.3,3.78481]
[1752076640317,0.75308,2655.4,2655.3,3.78481]
[1752076645411,2.5015792,2655.4,2655.3,3.78481]
[1752076645617,2.5015792,2655.4,2655.3,2.45551]
[1752076645918,2.6200792,2655.4,2655.3,2.45551]
[1752076646117,2.5015792,2655.4,2655.3,2.45551]
[1752076649012,2.6200792,2655.4,2655.3,2.45551]
[1752076649815,2.6200792,2655.4,2655.3,0.6786]
[1752076650016,0.6572,2655.5,2655.4,0.75308]
[1752076650218,0.6572,2655.5,2655.4,2.45548]
[1752076650412,0.75305,2655.6,2655.5,0.75302]
[1752076650614,1.40605,2655.6,2655.5,0.75302]
[1752076651017,1.40605,2655.6,2655.5,1.43162]
[1752076651218,1.40605,2655.6,2655.5,2.45542]
[1752076652618,1.52455,2655.6,2655.5,2.45542]
[1752076656427,0.7715,2655.6,2655.5,2.45542]
[1752076656624,0.653,2655.6,2655.5,2.45542]
[1752076656829,4.9562992,2655.7,2655.6,0.75302]
[1752076657024,3.2078,2655.7,2655.6,2.45542]
[1752076657331,3.2078,2656.0,2655.9,0.75294]
[1752076657623,4.70617279,2656.0,2655.9,2.37984]
[1752076657826,5.45908279,2656.0,2655.9,2.37984]
[1752076658026,3.96071,2656.0,2655.9,2.37984]
[1752076658531,0.75291,2656.0,2655.9,2.37984]
[1752076659222,0.86871,2656.0,2655.9,2.37984]
[1752076659418,1.38107,2656.2,2655.9,1.6269]
[1752076659623,0.6282,2656.2,2656.1,0.75288]
[1752076659824,0.6282,2656.2,2656.1,2.32918]
[1752076660026,1.3636,2656.4,2656.3,0.75282]
[1752076660027,0.75281,2656.4,2656.3,0.75282]
[1752076660228,0.75281,2656.4,2656.3,1.38082]
[1752076660432,3.1518792,2656.5,2656.4,0.75279]
[1752076660622,4.64808679,2656.5,2656.4,1.38079]
[1752076660822,0.75285,2656.2,2655.8,1.8824]
[1752076661027,0.86869,2656.2,2656.1,0.628]
[1752076661230,2.6171892,2656.2,2656.1,0.628]
[1752076661832,2.6171892,2656.2,2656.1,1.38086]
[1752076662227,2.6171892,2656.2,2656.1,2.32916]
[1752076663927,2.6171892,2656.2,2656.1,1.5763]
[1752076666032,2.6171892,2656.2,2656.1,0.628]
[1752076666233,2.6171892,2656.2,2656.1,1.38088]
[1752076667330,2.6171892,2656.2,2656.1,2.32918]
[1752076668235,0.86869,2656.2,2656.1,2.32918]
[1752076668434,2.6171892,2656.2,2656.1,2.32918]
[1752076669434,3.96064,2656.3,2656.2,0.75285]
[1752076669637,5.7091392,2656.3,2656.2,1.38085]
[1752076669836,5.8249392,2656.3,2656.2,2.32915]
[1752076670035,4.07644,2656.3,2656.2,2.32915]
[1752076670237,5.8249392,2656.3,2656.2,2.32915]
[1752076670637,4.07642,2656.3,2656.2,2.32915]
[1752076670837,5.8249192,2656.3,2656.2,2.32915]
[1752076672535,2.6171192,2656.3,2656.2,2.32915]
[1752076672937,2.5013192,2656.3,2656.2,2.32915]
[1752076673134,1.7484992,2656.3,2656.2,2.32915]
[1752076673339,3.2078,2656.6,2656.5,0.75276]
[1752076673637,0.75274,2656.6,2656.5,2.32906]
[1752076673835,1.42283,2656.7,2656.6,0.75274]
[1752076674137,0.75272,2656.8,2656.7,0.75268]
[1752076674330,0.75272,2656.8,2656.7,2.99978]
[1752076674331,2.5012192,2656.8,2656.7,2.99978]
[1752076674638,1.7484992,2656.8,2656.7,2.99978]
[1752076675335,2.5011792,2656.8,2656.7,2.99978]
[1752076677235,2.6169792,2656.8,2656.7,0.628]
[1752076677439,0.75274,2656.6,2656.5,1.70105]
[1752076677739,2.5012392,2656.6,2656.5,2.32905]
[1752076678642,1.7484992,2656.6,2656.5,2.32905]
[1752076678839,0.75267,2656.9,2656.5,5.2067092]
[1752076679138,0.75261,2657.1,2657.0,0.75259]
[1752076679333,3.1757892,2657.2,2657.1,0.75259]
[1752076679539,3.91466901,2657.2,2657.1,2.32889]
[1752076679737,2.5010392,2657.4,2657.3,0.75254]
[1752076679941,3.99243623,2657.4,2657.3,1.38054]
[1752076680245,5.25404829,2657.8,2657.3,1.38054]
[1752076680246,3.37302829,2657.9,2657.3,6.5763]
[1752076680442,1.7484992,2658.0,2657.7,0.75242]
[1752076680736,1.7484992,2657.8,2657.5,3.2078]
[1752076680938,1.7484992,2657.6,2657.5,3.2078]
[1752076681135,0.1158,2657.6,2657.5,4.58828]
[1752076681442,3.22352,2658.1,2657.5,4.7841]
[1752076681443,1.7484992,2657.9,2657.5,4.7841]
[1752076681634,0.6747,2658.0,2657.7,0.75239]
[1752076681635,0.75241,2657.8,2657.7,0.75239]
[1752076681840,2.5009092,2657.8,2657.7,0.628]
[1752076682035,2.5008892,2657.9,2657.7,1.5763]
[1752076682240,2.5008892,2657.9,2657.8,3.9602]
[1752076682440,0.75236,2658.0,2657.9,0.75237]
[1752076682742,0.75236,2658.0,2657.9,3.57147]
[1752076682936,0.75236,2658.0,2657.9,2.8191]
[1752076683839,0.75236,2658.0,2657.9,3.57147]
[1752076684543,0.75236,2658.0,2657.9,2.8191]
[1752076685839,0.75236,2658.0,2657.9,3.57147]
[1752076686744,1.7484992,2658.1,2657.9,3.57147]
[1752076686745,40.8,2658.2,2657.9,2.8191]
[1752076686943,41.55231,2658.2,2658.1,0.75231]
[1752076687140,41.55231,2658.2,2658.1,2.32861]
[1752076687341,0.75231,2658.2,2658.1,2.32861]
[1752076687542,0.75231,2658.2,2658.1,5.53639]
[1752076687543,0.75228,2658.2,2658.1,5.53639]
[1752076688141,41.4555,2658.3,2658.2,0.75228]
[1752076688442,1.88037,2658.7,2658.2,0.75228]
[1752076688443,0.75223,2658.5,2658.4,0.75221]
[1752076688642,0.75223,2658.5,2658.4,3.8358]
[1752076688944,0.86803,2658.5,2658.4,4.7985]
[1752076689146,0.86803,2658.5,2658.4,5.55073]
[1752076689336,41.66803,2658.5,2658.4,5.55073]
[1752076689539,0.86803,2658.5,2658.4,4.7985]
[1752076691346,0.86803,2658.5,2658.4,5.55073]
[1752076691545,0.86803,2658.5,2658.4,4.7985]
[1752076692445,0.86803,2658.5,2658.4,5.55073]
[1752076692841,0.86803,2658.5,2658.4,4.7985]
[1752076693841,0.86803,2658.5,2658.4,5.55073]
[1752076695148,0.86803,2658.5,2658.4,4.7985]
[1752076695440,0.75223,2658.5,2657.8,1.88095]
[1752076695645,0.75231,2658.2,2658.1,3.96008]
[1752076695846,0.75231,2658.2,2658.1,4.63378]
[1752076696049,0.86761,2658.2,2658.1,4.63378]
[1752076696549,0.86761,2658.2,2658.1,3.8815]
[1752076696748,2.6161092,2658.2,2658.1,4.63381]
[1752076697948,0.1153,2658.2,2658.1,4.63381]
[1752076698348,0.1153,2658.2,2658.1,5.89971]
[1752076698643,1.8637992,2658.2,2658.1,4.63381]
[1752076698851,0.86758,2658.2,2658.1,4.63381]
[1752076699039,1.8637992,2658.2,2658.1,4.63381]
[1752076699241,0.1153,2658.2,2658.1,4.63381]
[1752076700641,43.3006892,2658.6,2658.5,0.7522]
[1752076701653,43.3006892,2658.6,2658.5,1.4259]
[1752076702555,44.6655892,2658.6,2658.5,1.4259]
[1752076702849,3.2078,2659.1,2658.5,0.6737]
[1752076703153,1.7484992,2659.3,2658.9,0.75209]
[1752076703350,0.6764,2659.2,2658.9,0.75209]
[1752076703557,1.7484992,2659.1,2658.9,0.75209]
[1752076704151,0.6764,2659.2,2658.9,0.75209]
[1752076704547,1.7484992,2659.1,2658.9,0.75209]
[1752076704751,1.7484992,2659.1,2658.9,2.38849]
[1752076705852,0.6764,2659.2,2658.9,2.38849]
[1752076706052,1.7484992,2659.1,2658.9,2.38849]
[1752076706558,0.6764,2659.2,2658.9,2.38849]
[1752076706757,1.7484992,2659.6,2659.1,1.88008]
[1752076706952,1.7484992,2659.6,2659.4,0.75194]
[1752076706953,0.6704,2659.5,2659.4,0.75194]
[1752076707148,0.6704,2659.5,2659.4,1.71464]
[1752076707353,0.6704,2659.5,2659.4,2.38834]
[1752076707550,0.7842,2659.5,2659.4,2.38834]
[1752076707756,0.75194,2659.4,2659.3,3.2078]
[1752076707955,0.75194,2659.4,2658.9,3.2078]
[1752076707956,1.9333992,2659.4,2658.9,3.2078]
[1752076708257,2.5005592,2659.0,2658.9,3.2078]
[1752076708458,0.75214,2658.7,2658.6,3.95996]
[1752076708754,2.6144392,2658.7,2658.6,3.2078]
[1752076709360,3.6107984,2658.7,2658.4,0.75221]
[1752076709556,1.7484992,2658.5,2658.4,0.75221]
[1752076709757,1.8622992,2658.5,2658.4,1.42591]
[1752076710150,1.7484992,2658.5,2658.4,1.42591]
[1752076710358,1.8622992,2658.5,2658.4,1.42591]
[1752076710859,1.4485,2658.5,2658.4,1.42591]
[1752076711949,0.75226,2658.3,2658.2,0.75228]
[1752076712159,0.75229,2658.2,2658.0,0.9627]
[1752076712459,3.29808887,2658.3,2657.9,3.2078]
[1752076712655,4.05042887,2658.0,2657.9,4.63386]
[1752076712857,4.05042887,2658.0,2657.9,3.2078]
[1752076713055,0.75243,2657.7,2657.6,3.2078]
[1752076713360,4.05051887,2657.7,2657.6,3.8815]
[1752076713561,4.16431887,2657.7,2657.6,3.8815]
[1752076713860,4.16431887,2657.7,2657.6,4.63395]
[1752076714053,1.9644,2657.9,2657.6,4.8442]
[1752076714261,44.09808887,2658.6,2658.3,0.75224]
[1752076714459,2.07755755,2658.5,2658.4,0.75223]
[1752076714758,2.07755755,2658.5,2658.4,1.42593]
[1752076715057,4.29176755,2658.5,2658.4,1.42593]
[1752076715256,2.71661,2658.5,2658.4,0.6737]
[1752076715556,2.0782,2658.5,2658.1,3.2078]
[1752076715756,0.75228,2658.2,2658.1,3.9601]
[1752076715957,0.75228,2658.2,2658.1,3.8815]
[1752076716259,2.04888,2658.2,2658.1,3.8815]
[1752076716955,2.16268,2658.2,2658.1,4.63381]
[1752076717160,0.75215,2658.8,2658.4,0.75223]
[1752076717456,0.6445,2658.9,2658.8,0.75211]
[1752076717655,42.90925553,2658.9,2658.8,2.38171]
[1752076717855,2.10925553,2658.9,2658.8,2.38171]
[1752076718055,0.75214,2658.7,2658.6,3.2078]
[1752076718257,0.75213,2658.8,2658.6,0.6737]
[1752076718461,0.75213,2658.8,2658.7,0.75214]
[1752076718660,2.21695441,2658.8,2658.7,1.42584]
[1752076718962,2.33075441,2658.8,2658.7,1.42584]
[1752076719162,2.33075441,2658.8,2658.7,0.6737]
[1752076720262,0.75217,2658.6,2658.5,0.75219]
[1752076720562,1.3348,2658.8,2658.7,0.75214]
[1752076720757,1.4474,2658.8,2658.7,1.41164]
[1752076720956,0.75211,2658.8,2658.7,1.41164]
[1752076721159,0.86471,2658.8,2658.7,1.41164]
[1752076722262,0.86471,2658.8,2658.7,0.6595]
[1752076722561,0.75214,2658.7,2658.6,3.2078]
[1752076722757,0.75214,2658.7,2658.6,3.8673]
[1752076723262,0.86474,2658.7,2658.6,3.8673]
[1752076724166,0.86474,2658.7,2658.6,0.6595]
[1752076730468,0.75214,2658.7,2658.6,2.36757]
[1752076730868,0.75214,2658.7,2658.6,1.6154]
[1752076730869,0.86474,2658.7,2658.6,1.6154]
[1752076731869,0.86474,2658.7,2658.6,0.6595]
[1752076732269,0.86474,2658.7,2658.6,1.41167]
[1752076733170,0.86474,2658.7,2658.6,0.6595]
[1752076735668,0.7522,2658.5,2658.4,0.9559]
[1752076735873,0.7522,2658.5,2658.4,0.6595]
[1752076736268,1.5509,2658.5,2658.4,0.6595]
[1752076737166,3.29504456,2658.5,2658.4,0.6595]
[1752076737373,0.75226,2658.3,2658.2,0.9559]
[1752076737569,2.49640456,2658.3,2658.2,0.6595]
[1752076737771,2.61180456,2658.3,2658.2,0.6595]
[1752076738366,2.61180456,2658.3,2658.2,1.6154]
[1752076739371,2.61180456,2658.3,2658.2,2.2633]
[1752076740974,2.61180456,2658.3,2658.2,1.6154]
[1752076741877,2.49640456,2658.3,2658.2,2.36768]
[1752076742070,0.75226,2658.3,2658.2,2.36768]
[1752076743879,2.49640456,2658.3,2658.2,2.36768]
[1752076746884,2.61180456,2658.3,2658.2,2.36768]
[1752076748878,2.61180456,2658.3,2658.2,0.6595]
[1752076749479,0.75231,2658.1,2658.0,3.2078]
[1752076749685,2.61015456,2658.1,2658.0,3.2078]
[1752076749984,2.49645456,2658.1,2658.0,3.2078]
[1752076750284,3.25715456,2658.1,2658.0,3.2078]
[1752076750483,0.75237,2657.9,2657.8,6.11696967]
[1752076750684,0.75237,2657.9,2657.8,2.2549]
[1752076750685,2.49651456,2657.9,2657.8,2.2549]
[1752076751175,2.61021456,2657.9,2657.8,2.2549]
[1752076751574,2.49651456,2657.9,2657.8,2.2549]
[1752076751784,2.61021456,2657.9,2657.8,2.2549]
[1752076753990,2.61021456,2657.9,2657.8,0.6237]
[1752076755785,0.86607,2657.9,2657.8,1.5763]
[1752076758795,0.86607,2657.9,2657.8,0.6237]
[1752076760894,2.20777,2657.9,2657.8,0.6237]
[1752076762196,0.75248,2657.5,2657.4,4.8192]
[1752076762393,2.61032456,2657.5,2657.4,3.8315]
[1752076762598,43.41032456,2657.5,2657.4,3.8315]
[1752076762997,43.41032456,2657.5,2657.4,4.7841]
[1752076764398,43.41032456,2657.5,2657.4,3.8315]
[1752076764604,0.75257,2657.2,2657.1,0.6807]
[1752076764804,0.75257,2657.2,2657.1,2.257]
[1752076765200,0.6718,2657.2,2657.1,3.0096]
[1752076765402,0.75256,2657.3,2657.2,0.75253]
[1752076765604,0.75256,2657.3,2657.2,2.66743]
[1752076765803,0.75256,2657.3,2657.2,3.62003]
[1752076766503,0.75256,2657.3,2657.2,2.8675]
[1752076767098,0.86916,2657.3,2657.2,1.5763]
[1752076767304,0.75256,2657.3,2657.2,0.6237]
[1752076767700,0.7526,2657.1,2657.0,3.2078]
[1752076768004,2.49674456,2657.1,2657.0,3.8315]
[1752076768201,2.61334456,2657.1,2657.0,3.8315]
[1752076768507,2.49674456,2657.1,2657.0,3.8315]
[1752076768906,2.61334456,2657.1,2657.0,3.8315]
[1752076770806,0.1166,2657.1,2657.0,4.58412]
[1752076771006,0.1166,2657.1,2657.0,5.81962]
[1752076771507,0.75258,2657.2,2657.1,0.75259]
[1752076772405,0.75256,2657.3,2657.2,0.75252]
[1752076772604,0.75251,2657.4,2657.3,0.75251]
[1752076772805,0.75251,2657.4,2657.3,5.19581]
[1752076773102,0.75251,2657.4,2657.3,6.77211]
[1752076774408,0.7525,2657.5,2657.4,0.75248]
[1752076774603,0.7525,2657.5,2657.4,2.00218]
[1752076774803,0.7525,2657.5,2657.4,2.62588]
[1752076775198,0.7525,2657.5,2657.4,3.57848]
[1752076775909,0.75243,2657.8,2657.7,0.75242]
[1752076776206,0.75243,2657.8,2657.7,5.53652]
[1752076776406,0.75238,2657.9,2657.8,0.75235]
[1752076776608,3.62493456,2658.1,2657.9,0.75237]
[1752076776609,0.75236,2658.0,2657.9,0.75237]
[1752076776808,0.86896,2658.0,2657.9,2.32867]
[1752076776999,41.66896,2658.0,2657.9,2.32867]
[1752076778309,40.9166,2658.0,2657.9,2.32867]
[1752076779304,40.8,2658.0,2657.9,2.35947]
[1752076779505,1.74414456,2658.4,2658.3,0.75226]
[1752076779710,2.60727456,2658.4,2658.3,0.75226]
[1752076779906,1.74414456,2658.4,2657.9,4.8149]
[1752076780111,0.7523,2658.2,2658.1,0.75228]
[1752076780306,0.8632,2658.2,2658.1,0.75228]
[1752076781310,0.1109,2658.2,2658.1,0.75228]
[1752076782011,0.86318,2658.2,2658.1,0.75228]
[1752076783510,0.1109,2658.2,2658.1,0.75228]
[1752076783806,0.86318,2658.2,2658.1,0.75228]
[1752076784613,0.86318,2658.2,2658.1,1.37068]
[1752076785211,0.75228,2658.2,2658.1,1.37068]
[1752076785412,0.86318,2658.2,2658.1,1.37068]
[1752076785611,0.75228,2658.2,2658.1,0.6184]
[1752076785811,0.75234,2658.0,2657.9,3.2078]
[1752076786111,0.86324,2658.0,2657.9,4.8149]
[1752076786311,3.16097456,2658.1,2658.0,0.75234]
[1752076786715,3.27187456,2658.1,2658.0,2.35944]
[1752076789016,1.41683,2658.1,2658.0,2.35944]
[1752076790715,3.27187456,2658.1,2657.9,3.2078]
[1752076790919,0.75234,2658.0,2657.9,3.2078]
[1752076791215,0.86324,2658.0,2657.9,3.8262]
[1752076791417,42.83304,2658.0,2657.9,3.8262]
[1752076791812,42.83304,2658.0,2657.9,4.57857]
[1752076792016,42.83304,2658.0,2657.9,3.8262]
[1752076792320,41.55234,2658.0,2657.9,5.56727]
[1752076792714,41.55234,2658.0,2657.9,4.8149]
[1752076793018,41.55234,2658.0,2657.9,5.56727]
[1752076794219,41.55234,2658.0,2657.9,4.8149]
[1752076794615,41.55234,2658.0,2657.9,5.56727]
[1752076794918,0.75234,2658.0,2657.9,5.56727]
[1752076795418,41.55234,2658.0,2657.9,5.56727]
[1752076796219,41.55234,2658.0,2657.9,2.35947]
[1752076796520,41.55234,2658.0,2657.9,5.56727]
[1752076799618,0.75234,2658.0,2657.9,5.56727]
[1752076799818,1.41683,2658.1,2658.0,0.75234]
[1752076800018,42.21683,2658.1,2658.0,1.37074]
[1752076800224,42.21683,2658.1,2658.0,2.35944]
[1752076800625,1.88056,2658.5,2658.0,1.6071]
[1752076800922,1.88056,2658.5,2658.0,0.6184]
[1752076801118,1.88056,2658.5,2658.2,3.2078]
[1752076803022,0.75225,2658.3,2658.2,3.2078]
[1752076803217,0.75225,2658.3,2658.2,3.96008]
[1752076803814,41.55225,2658.3,2658.2,3.96008]
[1752076804121,41.55225,2658.3,2658.2,3.2078]
[1752076804920,41.55225,2658.3,2658.2,3.96008]
[1752076805313,41.55225,2658.3,2658.2,3.2078]
[1752076805512,0.75225,2658.3,2658.2,3.96008]
[1752076805718,1.88611048,2658.6,2658.2,3.2078]
[1752076806022,0.75226,2658.3,2658.2,3.96006]
[1752076806619,0.75226,2658.4,2658.3,0.75224]
[1752076806923,0.75226,2658.4,2658.3,1.42274]
[1752076807324,0.75222,2658.5,2658.4,0.7522]
[1752076807524,0.75783048,2658.6,2658.5,0.7522]
[1752076807722,0.75783048,2658.6,2658.5,3.96]
[1752076808227,0.00564048,2658.6,2658.5,3.96]
[1752076809723,0.75206,2659.0,2658.9,0.75206]
[1752076810421,4.12936675,2659.1,2659.0,0.75206]
[1752076810627,0.75206,2659.0,2658.9,1.3436]
[1752076810927,0.75206,2659.0,2658.9,0.75209]
[1752076811929,4.12938675,2659.1,2659.0,0.75206]
[1752076812126,3.37733675,2659.1,2659.0,0.75206]
[1752076812332,4.12936675,2659.1,2659.0,0.75206]
[1752076812830,3.37733675,2659.1,2659.0,0.75206]
[1752076813226,4.12936675,2659.1,2659.0,0.75206]
[1752076815233,3.37733675,2659.1,2659.0,0.75206]
[1752076815532,4.12936675,2659.1,2659.0,0.75206]
[1752076817327,3.37733675,2659.1,2659.0,0.75206]
[1752076817727,4.12936675,2659.1,2659.0,0.75206]
[1752076818731,0.75206,2659.0,2658.9,0.75209]
[1752076818932,0.75209,2658.9,2658.8,4.58049]
[1752076819129,0.75209,2658.9,2658.8,3.2078]
[1752076819529,2.03739,2658.9,2658.8,3.2078]
[1752076820328,0.75209,2658.9,2658.8,3.2078]
[1752076820926,0.75209,2658.9,2658.8,3.95991]
[1752076821332,1.42798,2659.0,2658.9,0.75209]
[1752076823635,0.6759,2659.0,2658.9,0.75209]
[1752076823937,1.42796,2659.0,2658.9,0.75209]
[1752076824331,0.75209,2658.9,2658.8,3.9599]
[1752076824737,0.75209,2658.9,2658.8,3.2078]